{"text_format":"1","workbook":"xlsx","n_sheets":8,"sheets":["EN_PL","Intro","PL","BS","CF","Segments","RevenuesAndCosts","Exchange Rates"],"not_rendered":{"charts":0,"images":0,"macros":1,"external_links":0,"defined_names":28,"comments":0,"pivot_tables":0},"unopened":[],"bounds":{"document_bytes":16777216,"sheet_cells":100000,"rows_first":2000,"rows_last":500,"rows_between":2000,"halvings":0,"cell_chars":16384,"cell_head_chars":4096},"cells_cut":0,"cells_raw":0,"read":"whole","date_system":"1900"}

{"sheet":"EN_PL","index":0,"n_rows":0,"n_cols":0,"rows_kept":0,"cut":false,"hidden":false,"merged":[[30,1,30,6],[11,1,11,6],[15,1,16,1],[15,2,16,2],[15,3,15,4]]}

{"sheet":"Intro","index":1,"n_rows":8,"n_cols":10,"rows_kept":8,"cut":false,"hidden":false,"merged":[[9,1,9,6],[7,1,7,6],[4,9,4,14],[4,1,4,6],[7,9,7,14]]}
[]
[]
[null,"Uwaga:",null,null,null,null,null,null,null,"Please note:"]
[]
[null,"W niniejszym pliku zaprezentowane są dane finansowe Grupy Asseco za kwartały lat 2018 i 2017. ",null,null,null,null,null,null,null,"This workbook contains financial information of the Asseco Group for the quarters of the years 2018 and 2017."]
[null,"Objaśnienia:"]
[]
[null,"Arkusze oznaczone kolorem niebieskim zawierają P&L, Bilans i Rachunek przepływów pieniężnych. \n\nW arkuszu Segments, znajdują się informacje dotyczące segmentów operacyjnych grupy. \nArkusz RevenuesAndCosts zawiera dane uszczegóławiające do pozycji przychodów i kosztów operacyjnych.\n\nKursy walut funkcjonalnych zagranicznych jednostek zależnych obowiązujące na dni bilansowe oraz kursy średnie stosowane w latach 2015-2018 zamieszczone są w arkuszu Exchange rates.",null,null,null,null,null,null,null,"The sheets marked with blue colour contain P&L, statement of financial position and the statement of cash flow of the Asseco Group. \nThe Segments sheet contains data on the groups' operating segments. \nThe RevenuesAndCosts sheet presents details for the items of revenues and operating costs.\nThe exchange rates of the foreign subsidiaries' functional currencies as at the balance sheet date and the average exchange rates used in years 2015-2018 are presented in the Exchange Rates sheet."]

{"sheet":"PL","index":2,"n_rows":40,"n_cols":7,"rows_kept":40,"cut":false,"hidden":false,"merged":[[0,0,3,0],[0,1,3,1]]}
["P&L (Grupa Asseco)","P&L (Asseco Group)","Q1 2019","Q4 2018","Q3 2018","Q2 2018","Q1 2018"]
[]
[]
[null,null,"mln PLN","mln PLN","mln PLN","mln PLN","mln PLN"]
[]
["Działalność kontynuowana","Continuing operations"]
["Przychody ze sprzedaży","Sales revenues",2452.1999999999998,2650.3,2218.4,2310.8999999999996,2149]
[]
["Koszt własny sprzedaży (-)","Cost of sales",-1923.6,-2082.1,-1743.2,-1791.7,-1717.6000000000001]
["Odpis (odwrócenie odpisu) z tytułu utraty wartości należności handlowych","Write-off (reversal of write-off) of trade receivables",0.2,0.5,-5.0999999999999996,-6.1000000000000005,5.9]
[]
["Zysk brutto ze sprzedaży","Gross profit on sales",{"$f":"SUM(C7:C10)","v":528.79999999999995},{"$f":"SUM(D7:D10)","v":568.70000000000027},{"$f":"SUM(E7:E10)","v":470.1},{"$f":"SUM(F7:F10)","v":513.09999999999957},{"$f":"SUM(G7:G10)","v":437.29999999999984}]
[]
["Koszty sprzedaży (-)","Selling costs",-130.19999999999999,-134.5,-120.3,-130.69999999999999,-118.4]
["Koszty ogólnego zarządu (-)","General administrative expenses",-168.9,-189.9,-161.80000000000001,-176.59999999999997,-147.80000000000001]
[]
["Zysk netto ze sprzedaży","Net profit on sales",{"$f":"SUM(C12,C14:C15)","v":229.69999999999996},{"$f":"SUM(D12,D14:D15)","v":244.30000000000027},{"$f":"SUM(E12,E14:E15)","v":188},205.79999999999961,171.09999999999985]
[]
["Pozostałe przychody operacyjne","Other operating income",11.9,5.4,16.600000000000001,8.1,8.6]
["Pozostałe koszty operacyjne (-)","Other operating expenses",-16.899999999999999,-11.8,-16.899999999999999,-10,-12.4]
["Odpis (odwrócenie odpisu) z tytułu utraty wartości instrumentów finansowych","Write-off (reversal of write-off) of financial instruments",0,0.2,-0.1,-0.1,0]
[]
["Zysk z działalności operacyjnej ","Operating profit",{"$f":"SUM(C17:C21)","v":224.69999999999996},{"$f":"SUM(D17:D21)","v":238.10000000000025},{"$f":"SUM(E17:E21)","v":187.6},{"$f":"SUM(F17:F21)","v":203.79999999999961},{"$f":"SUM(G17:G21)","v":167.29999999999984}]
[]
["Działalność finansowa","Financial activity",-24.6,-0.6,-9.6,-6.5,-6.1]
[]
["Zysk przed opodatkowaniem i udziałem w wynikach jednostek stowarzyszonych","Pre-tax profit and share in profits of associates",{"$f":"SUM(C22:C25)","v":200.09999999999997},{"$f":"SUM(D22:D25)","v":237.50000000000026},{"$f":"SUM(E22:E25)","v":178},{"$f":"SUM(F22:F25)","v":197.29999999999961},{"$f":"SUM(G22:G25)","v":161.19999999999985}]
[]
["Podatek dochodowy","Corporate income tax",-43.8,-56.9,-37,-45.2,-43.2]
["Udział w wynikach jednostek stowarzyszonych","Share in profits of associates",0.9,3.8,0.3,-0.70000000000000018,-1.4]
[]
["Zysk z działalności kontynuowanej za okres sprawozdawczy","Net profit for the period from continuing operations",{"$f":"SUM(C27,C29:C30)","v":157.19999999999996},184.40000000000026,141.30000000000001,151.39999999999964,116.59999999999984]
[]
["Działalność zaniechana","Discontinued operations"]
["Zysk z działalności zaniechanej za okres sprawozdawczy","Net profit for the period from discontinued operations",0,0,0,0,0]
[]
["Zysk za okres sprawozdawczy","Net profit for the reporting period",{"$f":"C32+C35","v":157.19999999999996},{"$f":"D32+D35","v":184.40000000000026},{"$f":"E32+E35","v":141.30000000000001},{"$f":"F32+F35","v":151.39999999999964},116.59999999999984]
["Przypadający:","Attributable to:"]
["Akcjonariuszom Jednostki Dominującej","Shareholders of the Parent Company",{"$f":"C37-C40","v":79.599999999999966},{"$f":"D37-D40","v":98.000000000000256},{"$f":"E37-E40","v":78.000000000000014},{"$f":"F37-F40","v":88.399999999999636},68.899999999999835]
["Udziałowcom niekontrolującym","Non-controling interests",77.599999999999994,86.4,63.3,63,47.7]

{"sheet":"BS","index":3,"n_rows":66,"n_cols":7,"rows_kept":66,"cut":false,"hidden":false,"merged":[[0,0,3,0],[0,1,3,1]]}
["Bilans (Grupa Asseco)","Statement of financial position (Asseco Group)","Q1 2019","Q4 2018","Q3 2018","Q2 2018","Q1 2018"]
[]
[]
[null,null,"mln PLN","mln PLN","mln PLN","mln PLN","mln PLN"]
[]
[]
["Aktywa trwałe","Non-current assets"]
["Rzeczowe aktywa trwałe","Property, plant and equipment",767.3,828.4,838.4,851.2,832.3]
["Wartości niematerialne","Intangible assets",2072.3000000000002,1988.9,2036.9,2112,2031.4]
["Aktywa z tytułu prawa do użytkowania","Right-to-use assets",655.29999999999995,0,0,0,0]
["Nieruchomości inwestycyjne","Investment property",23.4,21,20.100000000000001,20.100000000000001,19.8]
["Wartość firmy","Goodwill",4416.3999999999996,4251.2,4197.3999999999996,4202.2,4024.4]
["Inwestycje wyceniane metodą praw własności","Investments valued using equity method",133,111.5,102.9,105,97.6]
["Należności długoterminowe","Long-term receivables",117.6,127.5,119.9,118.9,106.8]
["Aktywa z tytułu odroczonego pod. doch.","Deferred income tax assets",92,83.6,76.400000000000006,84.2,77.900000000000006]
["Inne aktywa niefinansowe","Other non-financial assets",0,0.1,0,0.2,0.1]
["Pozostałe długoterminowe aktywa finansowe ","Long-term financial assets",162.6,175.1,153.80000000000001,176.79999999999998,169.5]
["Długoterminowe rozliczenia międzyokresowe ","Long-term prepayments and accrued income",58.6,59.2,50.9,53.4,51.9]
[null,null,{"$f":"SUM(C8:C18)","v":8498.5000000000018},{"$f":"SUM(D8:D18)","v":7646.5000000000009},{"$f":"SUM(E8:E18)","v":7596.699999999998},{"$f":"SUM(F8:F18)","v":7723.9999999999991},{"$f":"SUM(G8:G18)","v":7411.7}]
["Aktywa obrotowe","Current assets"]
["Zapasy","Inventories",99.3,94.3,93.8,76.900000000000006,81.2]
["Rozliczenia międzyokresowe ","Prepayments and accrued income",232.2,168.5,172.7,182,179.4]
["Należności z tytułu dostaw i usług","Trade receivables",2348.6999999999998,2432.6999999999998,2183.5,2116.3000000000002,2211.6999999999998]
["Aktywa z tytułu umów z klientami","Contract assets",279.7,214.3,262.89999999999998,270.10000000000002,0]
["Należności z tytułu podatku CIT","Corporate income tax receivable",58.8,47.6,56.6,57,77.099999999999994]
["Należności budżetowe","Receivables from the state and local budgets",34.6,37.299999999999997,32.799999999999997,29.200000000000003,25.6]
["Pozostałe należności","Other receivables",367.8,38.9,48.9,45.1,43.9]
["Inne aktywa niefinansowe","Other non-financial receivables",8,9,11,9.1999999999999993,12.3]
["Pozostałe aktywa finansowe ","Financial assets",108.1,139.30000000000001,84.8,67.3,83.5]
["Środki pieniężne i depozyty krótkoterminowe","Cash and short-term deposits",1853.6,1800.5,1604,1447.4,1546.7]
["Aktywa długoterm. sklas. jako przezn. do sprzedaży","Non-current assets classified as held for sale",8.4,10.9,9.6,7.5,7.4]
[null,null,{"$f":"SUM(C21:C31)","v":5399.1999999999989},{"$f":"SUM(D21:D31)","v":4993.3},{"$f":"SUM(E21:E31)","v":4560.6000000000004},{"$f":"SUM(F21:F31)","v":4308},{"$f":"SUM(G21:G31)","v":4268.7999999999993}]
[]
["SUMA AKTYWÓW","TOTAL ASSETS",{"$f":"C32+C19","v":13897.7},12639.800000000001,{"$f":"E32+E19","v":12157.3},12032,{"$f":"G32+G19","v":11680.5}]
[]
["Kapitał własny\n(przypisany akcjonariuszom Jednostki Dominującej)","Equity\n(attributable to shareholders of the Parent Company)",5818.8,5717.7,5604.6,5574.6999999999989,5615.9]
[]
["Udziały niekontrolujące","Non-controlling interests",2081.6,1945.6,1867.8,1784.9,1660.6]
[]
["Kapitał własny ogółem","Total equity",{"$f":"SUM(C36:C38)","v":7900.4},7663.2999999999993,7472.4000000000005,7359.5999999999985,7276.5]
[]
["Zobowiązania długoterminowe","Non-current liabilities"]
["Oprocentowane kred. bankowe, poż., dłużne pap. wart.","Interest-bearing bank loans, borrowing and debt securities",1276.5,1082.9000000000001,889.6,911.7,935.9]
["Długoterminowe zob. z tyt. leasingu finansowego","Long-term finance lease liabilities",478.1,32.1,37.4,43.9,45.1]
["Długoterminowe zob. finansowe","Long-term financial liabilities",248.6,178.8,257.5,257.89999999999998,320.8]
["Rezerwy z tytułu odroczonego pod. doch.","Deferred income tax liabilities",426.1,410.4,410.4,419.5,409.1]
["Długoterminowe rezerwy","Long-term provisions",72.900000000000006,67.900000000000006,64.099999999999994,66.7,64.8]
["Długoterminowe rozliczenia międzyok. przych.","Long-term deferred income",43.1,43.2,43.4,43.5,79.400000000000006]
["Pozostałe zobowiązania długoterminowe","Other long-term liabilities",49.3,46.9,44.3,47.2,15.1]
[null,null,{"$f":"SUM(C43:C49)","v":2594.6},{"$f":"SUM(D43:D49)","v":1862.2},1746.7,1790.4,1870.2]
["Zobowiązania krótkoterminowe","Current liabilities"]
["Oprocentowane kred. bankowe, poż., dłużne pap. wart.","Interest-bearing bank loans, borrowing and debt securities",691.6,581.6,806.2,724.3,561]
["Zobowiązania z tytułu leasingu finansowego","Finance lease liabilities",189.8,28.9,28.1,28.7,26.8]
["Zobowiązania finansowe","Financial liabilities",198,199.7,189.4,187,78.3]
["Zobowiązania z tytułu dostaw i usług","Trade payables",839.1,938.2,729.8,692.1,683.2]
["Zobowiązania z tytułu umów z klientami","Contract liabilities",603.79999999999995,451.1,388,440.2,0]
["Zobowiązania z tytułu podatku CIT","Corporate income tax payable",68,73.7,84.7,83.3,69.2]
["Zobowiązania budżetowe","Liabilities to the state and local budgets",155.1,204.8,133.69999999999999,128,120.6]
["Pozostałe zobowiązania","Other liabilities",340.9,314.3,267.7,282.3,279.39999999999998]
["Rezerwy","Provisions",41.2,39.6,35.700000000000003,33.1,36.200000000000003]
["Rozliczenia międzyokresowe przychodów","Deferred income",9.6999999999999993,7.8,10,16.3,440.5]
["Rozliczenia międzyokresowe kosztów","Accruals",265.5,274.60000000000002,264.89999999999998,266.70000000000005,238.6]
[null,null,{"$f":"SUM(C52:C62)","v":3402.7},3114.3,{"$f":"SUM(E52:E62)","v":2938.1999999999994},2882,{"$f":"SUM(G52:G62)","v":2533.7999999999997}]
["Suma zobowiązań","Total liabilities",{"$f":"SUM(C50,C63)","v":5997.2999999999993},4976.5,{"$f":"SUM(E50,E63)","v":4684.8999999999996},4672.3999999999996,{"$f":"SUM(G50,G63)","v":4404}]
[]
["SUMA PASYWÓW","TOTAL EQUITY AND LIABILITIES",{"$f":"SUM(C64,C40)","v":13897.699999999999},{"$f":"SUM(D64,D40)","v":12639.8},12157.3,12031.999999999998,11680.5]

{"sheet":"CF","index":4,"n_rows":94,"n_cols":4,"rows_kept":94,"cut":false,"hidden":false,"merged":[[0,0,3,0],[0,1,3,1],[71,1,74,1],[71,0,74,0]]}
["Rachunek przepływów pieniężnych (Grupa Asseco)","Statement of cash flows (Asseco Group)"]
[null,null,"Q1 2019","Q1 2018"]
[]
[null,null,"mln PLN","mln PLN"]
[]
["Przepływy środków pieniężnych z działalności operacyjnej","Cash flows - operating activities"]
["Zysk przed opodatkowaniem i udziałem w wynikach jednostek stowarzyszonych i wspólnych przedsięwzięć","Profit before tax and share of profits of associates and joint ventures",200.1,161.19999999999999]
[]
["Korekty o pozycje:","Total adjustments:",{"$f":"SUM(C10:C24)","v":166.9},{"$f":"SUM(D10:D24)","v":21.200000000000006}]
["Amortyzacja","Depreciation and amortization",144.4,117.2]
["Zmiany stanu kapitału pracującego (szczegóły poniżej)","Changes in working capital (see below)",3.1,-101.2]
["Przychody/koszty z tytułu odsetek","Interest income/expenses",15,7.2]
["Przychody/koszty z różnic kursowych","Gain/loss on foreign exchange differences",4.2,-3.2]
["Przychody/koszty z tytułu aktywów finansowych [1]","Gain/loss on financial assets [1]",-0.1,-2.4]
["Pozostałe przychody/koszty finansowe","Other financial income/expenses",-4.2,2.6]
["Zysk na utracie kontroli nad spółkami zależnymi","Gain on lose of control over subsidiaries",0,0]
["Odpis z tytułu utraty wartości firmy","Write-off of consolidated goodwill",0,0]
["Zyski/straty na sprzedaży rzeczowych AT i WN [2]","Gain/loss on disposal of PPE and IA [2]",-0.6,-0.7]
["Zysk na sprzedaży spółki zależnej","Gain on disposal of subsidiary",0,0]
["Zysk na sprzedaży działalności zaniechanej","Gain on disposal of discontinued operations",0,0]
["Koszty trans. z pracownikami rozliczanych w formie instr. kapitałowych","Costs of equity-settled employee payment transactions",5.0999999999999996,5.4]
["Odpis aktualizujący wartości niematerialne, rzeczowe aktywa trwałe i nieruchomości inwestycyjne","Impairment of intangible and tangible fixed assets and investment property",0,0]
["Zyski/straty z tytułu likwidacji rzeczowych aktywów trwałych i wartości niematerialnych","Profit / loss on liquidation of FA and IA",0,0]
["Pozostałe korekty zysku brutto","Other pre-tax profit adjustments",0,-3.7]
["Środki pieniężne netto wygenerowane z działalności operacyjnej","Cash generated from operating activities",{"$f":"C9+C7","v":367},{"$f":"D9+D7","v":182.4}]
["Zapłacony podatek dochodowy","Corporate income tax paid",-68.5,-41.8]
["Środki pieniężne netto z działalności operacyjnej ","Net cash provided by (used in) operating activities",{"$f":"C25+C26","v":298.5},{"$f":"D25+D26","v":140.60000000000002}]
[]
["Przepływy środków pieniężnych z działalności inwestycyjnej","Cash flows – investing activities"]
["Wpływy ze sprzedaży rzeczowych AT i WN [2] oraz NI [6]","Disposal of PPE and IA [2] and IP [6]",8.1999999999999993,7.1]
["Nabycie rzeczowych AT i WN [2] oraz NI [6]","Acquisition of PPE and IA [2]",-72.5,-49.3]
["Wydatki z tytułu nabycia jedn. zależnych i stowarzyszonych","Expenditures for the acquisition of subsidiaries and associates",-104.8,-110.8]
["Środki pieniężne i ich ekwiwalenty w nabytych jednostkach zależnych","Cash and cash equivalents in subsidiaries acquired"]
["Wpływy ze sprzedaży akcji/udziałów w jednostkach powiązanych","Proceeds from sale of investment in subsidiaries",0.4,3.7]
["Środki pieniężne i ich ekwiwalenty w sprzedanych jednostkach zależnych (działalność zaniechana)","Cash and cash equivalents in subsidiaries disposed of (discontinued operations)",0,0]
["Wpływy ze sprzedaży/rozliczenia aktywów finansowych [3]","Disposal/settlement of financial assets [3]",0.1,1.2]
["Wydatki na nabycie/wydatki z tytułu rozliczenia aktywów finansowych [4]","Acquisition/settlement of financial assets [4]",0,0]
["Wpływy ze sprzedaży/rozliczenia aktywów finansowych [7]","Disposal of financial assets [7]",2.8,0]
["Wydatki na nabycie aktywów finansowych [8]","Acquisition and settlement of financial assets [8]",-0.1,-2]
["Wpływ ze sprzedaży pozostałych instrumentów dłużnych [9]","Disposal of other debt instruments [9]",0,0]
["Wydatki na nabycie inwestycji w instrumenty dłużne [10]","Acquisition of ivestments in debt instruments measured at amortised cost [10]",-4.5,-2.5]
["Pożyczki udzielone","Loans granted",-0.4,-11]
["Pożyczki spłacone","Loans collected",30.2,14.9]
["Otrzymane odsetki","Interest received",5.3,5.6]
["Dywidendy otrzymane","Dividends received",0,0]
["Pozostałe przepływy z działalności inwestycyjnej","Other cash flows from investing activities",-8,-7.6]
["Środki pieniężne netto wykorzystane w działalności inwestycyjnej","Net cash provided by (used in) investing activities",{"$f":"SUM(C30:C46)","v":-143.29999999999998},{"$f":"SUM(D30:D46)","v":-150.70000000000002}]
[]
["Przepływy środków pieniężnych z działalności finansowej","Cash flows – financing activities"]
["Wpływ z tytułu emisji kapitału","Proceeds from issue of capital",0,0]
["Wpływy z realizacji programu opcji pracowniczych","Proceeds from share-based payments",0,0]
["Wydatki z tytułu nabycia udziałów niekontrolujących","Acquisition of non-controlling interests",0,-9.1999999999999993]
["Wpływy z tytułu zaciągnięcia pożyczek/kredytów","Proceeds from bank loans and borrowings",234.8,33.299999999999997]
["Wpływy z tytułu emisji dłużnych papierów wartościowych","Proceeds from the issuance of debt securities",0,153.69999999999999]
["Wykup dłużnych papierów wartościowych","Repayment/redemption of debt securities",-80.400000000000006,0]
["Spłata pożyczek/kredytów","Repayment of bank loans and borrowings",-137.1,-82.2]
["Spłata zobowiązań z tytułu leasingu finansowego","Finance lease liabilities paid",-48.2,-6.6]
["Zapłacone odsetki","Interest paid",-26.3,-13.5]
["Dywidendy wypłacone przez Jednostkę Dominującą","Dividends paid out to the shareholders of Parent Company",0,0]
["Dywidendy wypłacone dla udziałowców niekontrolujących","Dividends paid out to non-controlling interests",-59.5,-34.799999999999997]
["Dotacje otrzymane [5]","Grants received [5]",0,0]
["Dotacje zwrócone","Grants returned",0,0]
["Pozostałe przepływy z działalności finansowej","Other cash flows from financing activities",0,0]
["Środki pieniężne netto z działalności finansowej","Net cash provided by (used in) financing activities",{"$f":"SUM(C50:C63)","v":-116.69999999999999},{"$f":"SUM(D50:D63)","v":40.699999999999989}]
[]
["Zwiększenie/Zmniejszenie netto stanu środków pieniężnych i ich ekwiwalentów ","Net increase (decrease) in cash and cash equivalents ",{"$f":"C27+C47+C64","v":38.500000000000028},{"$f":"D27+D47+D64","v":30.599999999999994}]
[]
["Różnice kursowe netto","Net foreign exchange differences",27.1,-19.100000000000001]
["Środki pieniężne i ich ekwiwalenty netto na dzień 1 stycznia","Cash and cash equivalents at 1 January",1767.5,1484]
["Środki pieniężne i ich ekwiwalenty netto na dzień 31 marca","Cash and cash equivalents at 31 March",1833.1,1495.5]
[null,null,{"$f":"C69+C68+C66-C70","v":0},{"$f":"D69+D68+D66-D70","v":0}]
["Zmiany stanu kapitału pracującego","Changes in working capital"]
[null,null,{"$f":"C2","v":"Q1 2019"},{"$f":"D2","v":"Q1 2018"}]
[]
[null,null,{"$f":"C4","v":"mln PLN"},{"$f":"D4","v":"mln PLN"}]
["Zmiana stanu zapasów","Change in inventories",-3.7,-8.8000000000000007]
["Zmiana stanu należności i aktywów niefinansowych","Change in receivables and non-financial assets",178.5,121.3]
["Zmiana stanu zobowiązań","Change in liabilities",-237.9,-248.1]
["Zmiana stanu rozliczeń międzyokresowych","Change in prepayments and accruals",64.900000000000006,56.4]
["Zmiana stanu rezerw","Change in provisions",-1.3,-17.5]
["Zmiana stanu pozostałe","Change in restricted cash",2.6,-4.5]
[null,null,{"$f":"ROUND(SUM(C76:C81),1)","v":3.1},{"$f":"SUM(D76:D81)","v":-101.19999999999999}]
[null,null,{"$f":"C82-C11","v":0},{"$f":"D82-D11","v":0}]
["Objaśnienia:","Legend:"]
["[1] Przychody/koszty z tytułu aktywów finansowych (wycena; sprzedaż; utrata wartości itp)","[1] Gain/loss on financial assets (valuation, disposal, impairment, etc.)"]
["[2] AT i WN - aktywów trwałych i wartości niematerialnych","[2] PPE and IA - property, plant and equipment and intangible assets"]
["[3] Wpływy ze sprzedaży/rozliczenia akt. finansowych . wycenianych w wart. godz. przez wynik finansowy","[3] Disposal/settlement of financial assets carried at fair value through profit or loss"]
["[4] Wydatki na nabycie/wydatki z tytułu rozliczenia akt. fin. wycenianych w wart. godz. przez wynik finansowy","[4] Acquisition/settlement of financial assets carried at fair value through profit or loss"]
["[5] Dotacje otrzymane do zakupu środków trwałych lub/i projektów rozwojowych","[5] Grants received for purchases of property, plant and equipment and/or development projects"]
["[6] NI - nieruchomości inwestycyjnych","[6] IP - investment property"]
["[7] Wpływy ze sprzedaży aktywów finansowych wycenianych w wartości godziwej przez pozostałe dochody całkowite","[7] Proceeds from disposal of financial assets valued at fair value through other comprehensive income"]
["[8] Nabycie aktywów finansowych wycenianych w wartości godziwej przez pozostałe dochody całkowite","[8] Purchase of financial assets valued at fair value through other comprehensive income"]
["[9] Wpływ ze sprzedaży inwestycji w pozostałe instrumenty dłużne wyceniane w zamortyzowanym koszcie","[9] Disposal of other debt instruments carried  valued at amortized cost\n"]
["[10] Nabycie inwestycji w pozostałe instrumenty dłużne wyceniane w zamortyzowanym koszcie","[9] Acquisition of investment in other debt instruments valued at amortized cost"]

{"sheet":"Segments","index":5,"n_rows":74,"n_cols":7,"rows_kept":74,"cut":false,"hidden":false,"merged":[[53,0,56,0],[53,1,56,1],[31,0,33,0],[9,0,11,0],[0,0,1,0],[0,1,1,1],[9,1,11,1],[31,1,33,1]]}
["Segmenty działalności","Operating segments"]
[]
["Przejdź do:","Go to:"]
[{"$f":"seg_pl_pl","v":"Segment Asseco Poland"},{"$f":"seg_en_pl","v":"Segment Asseco Poland"}]
[{"$f":"seg_pl_see","v":"Segment Asseco International"},{"$f":"seg_en_see","v":"Segment Asseco International"}]
[{"$f":"seg_pl_we","v":"Segment Formula Systems"},{"$f":"seg_en_we","v":"Segment Formula Systems"}]
[]
[]
[]
["Segment Asseco Poland","Segment Asseco Poland","Q1 2019","Q4 2018","Q3 2018","Q2 2018","Q1 2018"]
[]
[null,null,"mln PLN","mln PLN","mln PLN","mln PLN","mln PLN"]
[]
["Sprzedaż na rzecz klientów zewnętrznych","Sales to external customers",294.89999999999998,376.5,306.10000000000002,350.20000000000005,314.5]
["Sprzedaż pomiędzy segmentami","Inter-segment sales",3.7,5.7,2.1,1.8999999999999997,1.8]
["Zysk/strata netto z działalności operacyjnej segmentu","Net operating profit/loss ",43.3,47.6,52.6,64.7,55.8]
["Przychody z tytułu odsetek","Interest income",1.6,1.6,2,0.69999999999999973,2.2000000000000002]
["Koszty z tytułu odsetek","Interest expenses",-1.7,-1.3,-2.2999999999999998,-2,-1.4]
["Podatek dochodowy","Corporate income tax",-8.1,-14.2,-12.5,-13.9,-15.1]
["Pozycje niepieniężne:","Non-cash items:"]
["Amortyzacja","Depreciation and amortization",-23.4,-21.6,-21.8,-19.899999999999995,-19.8]
["w tym amortyzacja wartości niematerialnych rozpoznanych w wyniku procesu alokacji ceny nabycia (PPA)","of which amortization of IA recognized in purchase price allocation process (PPA)",-3.7,-4.8,-4.5999999999999996,-4.2,-4.2]
["Koszty transakcji z pracownikami rozliczanych w formie instrumentów kapitałowych","Costs of share-based payment transactions with employees",0,0,0,0,0]
["Odpis z tyt. utraty wartości aktywów segmentu","Impairment write-downs on segment assets",2.6,-3.7,-1.4,-4.2,6.9]
[]
["Udział w wynikach jednostek stowarzyszonych i wspólnych przedsięwziąć","Share in profits of associates and joint ventures",0,1.1000000000000001,0.2,-0.6,-0.6]
["Zysk/strata netto segmentu przypisany Jednostce Dominującej","Net profit/loss attributable to shareholders of the Parent Company",35.299999999999997,37,40.5,45.3,38.799999999999997]
["Środki pieniężne netto z działalności operacyjnej ","Net cash provided by (used in) operating activities ",68.400000000000006,128.4,67.2,104.30000000000001,54.5]
["Wartość firmy","Goodwill ( in comparative periods balance as at 31.12.2017)",2257.1,2257.1,2256.2999999999997,2256.8999999999996,2253.6999999999998]
[]
[]
["Segment Asseco International","Segment Asseco International","Q1 2019","Q4 2018","Q3 2018","Q2 2018","Q1 2018"]
[]
[null,null,"mln PLN","mln PLN","mln PLN","mln PLN","mln PLN"]
[]
["Sprzedaż na rzecz klientów zewnętrznych","Sales to external customers",674.5,788.6,586.70000000000005,640.6,573.6]
["Sprzedaż pomiędzy segmentami","Inter-segment sales",-0.9,-1.5,0.1,3.6999999999999997,0.4]
["Zysk/strata netto z działalności operacyjnej segmentu","Net operating profit/loss ",76.400000000000006,91.1,58.9,69.600000000000009,54.3]
["Przychody z tytułu odsetek","Interest income",1.6,1.5,1.7,1.8000000000000003,1.4]
["Koszty z tytułu odsetek","Interest expenses",-1.9,-1,-1.2,-0.90000000000000013,-0.7]
["Podatek dochodowy","Corporate income tax",-16.100000000000001,-16.8,-13.5,-16.2,-14.7]
["Pozycje niepieniężne:","Non-cash items:"]
["Amortyzacja","Depreciation and amortization",-34.5,-25.2,-27.3,-27.8,-24.7]
["w tym amortyzacja wartości niematerialnych rozpoznanych w wyniku procesu alokacji ceny nabycia (PPA)","of which amortization of IA recognized in purchase price allocation process (PPA)",-2.2999999999999998,-3.1,-2,-2,-1.9]
["Koszty transakcji z pracownikami rozliczanych w formie instrumentów kapitałowych","Costs of share-based payment transactions with employees",-0.7,-0.7,-0.6,-1.7999999999999998,0.6]
["Odpis z tyt. utraty wartości aktywów segmentu","Impairment write-downs on segment assets",-2.2999999999999998,-4.7,-3.6,0.39999999999999997,-0.6]
[]
["Udział w wynikach jednostek stowarzyszonych i wspólnych przedsięwziąć","Share in profits of associates and joint ventures",-1.9,1.1000000000000001,0.1,0.30000000000000004,-1]
["Zysk/strata netto segmentu przypisany Jednostce Dominującej","Net profit/loss attributable to shareholders of the Parent Company",-38.299999999999997,53.3,31.8,38.200000000000003,26.3]
["Środki pieniężne netto z działalności operacyjnej ","Net cash provided by (used in) operating activities ",80.5,229.9,67.3,58,40.5]
["Wartość firmy","Goodwill ( in comparative periods balance as at 31.12.2017)",1362.7,1365.3,1366.1,1393.9999999999998,1345.6]
[]
[]
["Segment Formula Systems","Segment Formula Systems"]
[null,null,"Q1 2019","Q4 2018","Q3 2018","Q2 2018","Q1 2018"]
[]
[null,null,"mln PLN","mln PLN","mln PLN","mln PLN","mln PLN"]
[]
["Sprzedaż na rzecz klientów zewnętrznych","Sales to external customers",1482.8,1485.2,1325.6,1320.1,1260.9000000000001]
["Sprzedaż pomiędzy segmentami","Inter-segment sales",3.3,3,2.2000000000000002,2.8000000000000003,2.9]
["Zysk/strata netto z działalności operacyjnej segmentu","Net operating profit/loss ",105,99.7,74.8,69.8,56.8]
["Przychody z tytułu odsetek","Interest income",1.3,0.8,0.7,0.5,0.4]
["Koszty z tytułu odsetek","Interest expenses",-13.8,-11.4,-11.2,-10.4,-9.9]
["Podatek dochodowy","Corporate income tax",-19.600000000000001,-25.9,-11,-15.1,-13.4]
["Pozycje niepieniężne:","Non-cash items:"]
["Amortyzacja","Depreciation and amortization",-87.5,-70,-65.900000000000006,-65.5,-73.599999999999994]
["w tym amortyzacja wartości niematerialnych rozpoznanych w wyniku procesu alokacji ceny nabycia (PPA)","of which amortization of IA recognized in purchase price allocation process (PPA)",-44.9,-51.1,-47.5,-48.099999999999994,-56.5]
["Koszty transakcji z pracownikami rozliczanych w formie instrumentów kapitałowych","Costs of share-based payment transactions with employees",-4.4000000000000004,-3.9,-4.7,-5.7,-4.8]
["Odpis z tyt. utraty wartości aktywów segmentu","Impairment write-downs on segment assets",0.1,-1.7,-0.8,-0.89999999999999991,-1.6]
[]
["Udział w wynikach jednostek stowarzyszonych i wspólnych przedsięwziąć","Share in profits of associates and joint ventures",2.8,1.6,0,-0.4,0.2]
["Zysk/strata netto segmentu przypisany Jednostce Dominującej","Net profit/loss attributable to shareholders of the Parent Company",6,7.8,4.3,5.0999999999999996,3.4]
["Środki pieniężne netto z działalności operacyjnej ","Net cash provided by (used in) operating activities ",218.1,241.5,55.1,40.5,89]
["Wartość firmy","Goodwill ( in comparative periods balance as at 31.12.2017)",796.6,626.5,575,551.29999999999995,3918.4]

{"sheet":"RevenuesAndCosts","index":6,"n_rows":23,"n_cols":7,"rows_kept":23,"cut":false,"hidden":false,"merged":[[0,0,1,0],[0,1,1,1]]}
["Przychody ze sprzedaży","Sales revenues","Q1 2019","Q4 2018","Q3 2018","Q2 2018","Q1 2018"]
[null,null,"mln PLN","mln PLN","mln PLN","mln PLN","mln PLN"]
[]
["Przychody ze sprzedaży według rodzaju","Sales revenues by type of products"]
["Oprogramowanie i usługi własne","Proprietary software and services",1981.2,2050,1852.9,1870.6000000000004,1729]
["Oprogramowanie i usługi obce","Third-party software and services",174.9,235.2,127.19999999999999,168.60000000000002,145.6]
["Sprzęt i infrastruktura","Hardware and infrastructure",296.10000000000002,363.9,237.60000000000002,270.5,274.39999999999998]
["Pozostała sprzedaż","Other sales",0,1.2,0.7,1.2,0]
["Razem","Total",{"$f":"SUM(C5:C8)","v":2452.1999999999998},2650.2999999999997,2218.4,2310.9,2149]
[]
["Przychody ze sprzedaży według sektorów","Sales revenues by sectors"]
["Bankowość i finanse","Banking and finance",957.3,1041,930.59999999999991,901.59999999999991,820]
["Przedsiębiorstwa","General business",921,947.3,806.90000000000009,934.59999999999991,860.5]
["Instytucje Publiczne","Public Institutions",573.9,662,480.89999999999986,474.70000000000005,468.5]
["Razem","Total",{"$f":"SUM(C12:C14)","v":2452.1999999999998},2650.3,2218.3999999999996,2310.8999999999996,2149]
[]
["Struktura kosztów operacyjnych","Operating costs"]
["Wartość odsprzedanych towarów, materiałów i usług obcych (COGS)","Cost of goods, materials and third-party services sold ",-400.7,-478.2,-319.09999999999991,-365.29999999999995,-362.5]
["Świadczenia na rzecz pracowników","Employee benefits",-1226.0999999999999,-1246.8,-1111,-1132.5,-1081]
["Amortyzacja","Depreciation and amortization",-142.19999999999999,-114.1,-111,-110.9,-115.1]
["Usługi obce","External services",-320.3,-362.6,-312.69999999999993,-315.50000000000006,-276.2]
["Pozostałe","Other",-133.19999999999999,-204.3,-176.60000000000014,-180.89999999999986,-143.1]
["Razem","Total",{"$f":"SUM(C18:C22)","v":-2222.5},-2406,-2030.3999999999999,-2105.1,-1977.8999999999999]

{"sheet":"Exchange Rates","index":7,"n_rows":59,"n_cols":6,"rows_kept":59,"cut":false,"hidden":false,"merged":[]}
["Kursy walut","Exchange rates"]
[]
["Waluta","Currency","EUR/PLN","USD/PLN","NIS/PLN","RUB/PLN"]
[]
["Kurs średni 2014","Average exchange rate 2014",4.1893000000000002,3.1783999999999999,0.88460000000000005,8.2100000000000006E-2]
["Kurs otwarcia 2014","Opening exchange rate 2014",4.1471999999999998,3.012,0.86780000000000002,9.1399999999999995E-2]
["Kurs zamknięcia 2014","Closing exchange rate 2014",4.2622999999999998,3.5072000000000001,0.90180000000000005,6.0199999999999997E-2]
[]
["Kurs otwarcia 2015","Opening exchange rate 2015",4.2622999999999998,3.5072000000000001,0.90180000000000005,6.0199999999999997E-2]
["Kurs średni Q1 2015","Average exchange rate Q1 2015",4.1489000000000003,3.7435999999999998,0.94620000000000004,0.06]
["Kurs zamknięcia Q1 2015","Closing exchange rate Q1 2015",4.0890000000000004,3.8125,0.95789999999999997,6.6100000000000006E-2]
[]
["Kurs średni Q1-Q2 2015","Average exchange rate Q1-2 2015",4.1341333000000002,3.7268667,0.95666669999999998,6.4850000000000005E-2]
["Kurs zamknięcia Q2 2015","Closing exchange rate Q2 2015",4.1943999999999999,3.7645,0.99850000000000005,6.7599999999999993E-2]
[]
["Kurs średni Q1-Q3 2015","Average exchange rate Q1-Q3 2015",4.1585111000000001,3.7452778000000002,0.96285560000000003,6.2855599999999998E-2]
["Kurs zamknięcia Q3 2015","Closing exchange rate Q3 2015",4.2385999999999999,3.7753999999999999,0.96189999999999998,5.7599999999999998E-2]
[]
["Kurs średni Q1-Q4 2015","Average exchange rate Q1-Q4 2015",4.1847667,3.7928166999999999,0.97574150000000004,6.1624999999999999E-2]
["Kurs zamknięcia Q4 2015","Closing exchange rate Q4 2015",4.2614999999999998,3.9011,0.99976929999999997,5.28E-2]
[]
["Kurs średni Q1 2016","Average exchange rate Q1 2016",4.3559333000000002,3.9416000000000002,{"$f":"1.0167","v":1.0166999999999999},5.3933300000000003E-2]
["Kurs zamknięcia Q1 2016","Closing exchange rate Q1 2016",4.2683999999999997,3.7589999999999999,0.99809999999999999,5.5500000000000001E-2]
[]
["Kurs średni Q1-Q2 2016","Average exchange rate Q1-Q2 2016",4.3805167000000003,3.9359666999999998,1.0229467999999999,5.7250000000000002E-2]
["Kurs zamknięcia Q2 2016","Closing exchange rate Q2 2016",4.4255000000000004,3.9803000000000002,1.0349193999999999,6.2E-2]
[]
["Kurs średni Q1-Q3 2016","Average exchange rate Q1-Q3 2016",4.3687778000000002,3.9240222,1.0249222,5.8111099999999999E-2]
["Kurs zamknięcia Q3 2016","Closing exchange rate Q3 2016",4.3120000000000003,3.8557999999999999,1.0260244999999999,6.0900000000000003E-2]
[]
["Kurs średni Q1-Q4 2016","Average exchange rate Q1-Q4 2016",4.3756750000000002,3.9680333000000001,1.0353283,5.98167E-2]
["Kurs zamknięcia Q4 2016","Closing exchange rate Q4 2016",4.4240000000000004,4.1792999999999996,1.0869441,6.8000000000000005E-2]
[]
["Kurs średni Q1 2017","Average exchange rate Q1 2017",4.2890667000000002,4.0223667000000001,1.0912259,6.9366700000000003E-2]
["Kurs zamknięcia Q1 2017","Closing exchange rate Q1 2017",4.2198000000000002,3.9455,1.0863160999999999,7.0400000000000004E-2]
[]
["Kurs średni Q1-Q2 2017","Average exchange rate Q1-Q2 2017",4.2473999999999998,3.8963833000000001,1.0753374,6.7383299999999993E-2]
["Kurs zamknięcia Q2 2017","Closing exchange rate Q2 2017",4.2264999999999997,3.7061999999999999,1.0601259000000001,6.2399999999999997E-2]
[]
["Kurs średni Q1-Q3 2017","Average exchange rate Q1-Q3 2017",4.2566443999999999,3.8043111000000001,1.0558041,6.5455600000000003E-2]
["Kurs zamknięcia Q3 2017","Closing exchange rate Q3 2017",4.3090999999999999,3.6518999999999999,1.0348257000000001,6.3100000000000003E-2]
[]
["Kurs średni Q1-Q4 2017","Average exchange rate Q1-Q4 2017",4.2446000000000002,3.7439,1.0466,6.4399999999999999E-2]
["Kurs zamknięcia Q4 2017","Closing exchange rate Q4 2017",4.1708999999999996,3.4813000000000001,1.0041,6.0400000000000002E-2]
[]
["Kurs średni Q1 2018","Average exchange rate Q1 2018",4.1783999999999999,3.3881000000000001,0.97699999999999998,5.9799999999999999E-2]
["Kurs zamknięcia Q1 2018","Closing exchange rate Q1 2018",4.2084999999999999,3.4138999999999999,0.97150000000000003,5.9400000000000001E-2]
[]
["Kurs średni Q2 2018","Average exchange rate Q2 2018",4.2394499999999997,3.5192166999999999,0.99529239999999997,5.9049999999999998E-2]
["Kurs zamknięcia Q2 2018","Closing exchange rate Q2 2018",4.3616000000000001,3.7440000000000002,1.0257533999999999,5.9700000000000003E-2]
[]
["Kurs średni Q3 2018",null,4.2534777999999998,3.5688444000000001,1.0002298999999999,5.8111099999999999E-2]
["Kurs zamknięcia Q3 2018",null,4.2713999999999999,3.6753999999999998,1.0133444,5.6099999999999997E-2]
[]
["Kurs średni Q4 2018",null,4.2669167000000003,3.622725,1.0042799,5.7641699999999997E-2]
["Kurs zamknięcia Q4 2018",null,4.3,3.7597,1.0031216999999999,5.4100000000000002E-2]
[]
["Kurs średni Q1 2019",null,4.2978332999999997,3.7829666999999998,1.0433254999999999,5.9299999999999999E-2]
["Kurs zamknięcia Q1 2019",null,4.3013000000000003,3.8365,1.0563051000000001,5.8000000000000003E-2]